bitfinex/quotes_ETHUSD_20250518
["timestamp","ask_amount","ask_price","bid_price","bid_amount"]
[1747527625794,4.03483701,2478.5,2478.2,0.776]
[1747527626257,4.03491479,2478.4,2478.2,0.776]
[1747527626657,8.1196,2478.7,2478.0,0.776]
[1747527626861,18.1696,2478.7,2478.0,0.776]
[1747527627087,4.0346984,2478.5,2477.9,0.478045]
[1747527627288,4.03544401,2478.1,2477.9,0.478045]
[1747527627989,4.03551251,2478.0,2477.9,0.478045]
[1747527628301,4.55711251,2478.0,2477.9,0.478045]
[1747527629070,4.0360991,2477.7,2477.3,0.776]
[1747527629283,11.6350991,2477.7,2477.3,0.776]
[1747527630191,0.5216,2478.3,2477.5,0.776]
[1747527630502,4.03544089,2478.1,2477.5,4.81225782]
[1747527630875,4.03552669,2478.0,2477.5,4.81225782]
[1747527631203,4.03552669,2478.0,2477.5,0.776]
[1747527631426,4.03603742,2477.7,2477.0,12.03708942]
[1747527631632,4.03627376,2477.6,2477.3,0.776]
[1747527632127,11.64908309,2477.7,2477.3,0.776]
[1747527632289,7.613,2477.7,2477.3,0.776]
[1747527632490,7.611,2477.6,2477.3,4.81264821]
[1747527632732,7.611,2477.6,2477.3,0.776]
[1747527633333,11.64721394,2477.6,2476.9,4.81320611]
[1747527633533,7.611,2477.6,2476.9,8.30331504]
[1747527633691,4.03641884,2477.5,2477.0,4.0371417]
[1747527634091,4.03655342,2477.4,2476.9,8.30330737]
[1747527634590,4.03707008,2477.1,2476.9,0.776]
[1747527634796,4.03650445,2477.4,2476.9,0.776]
[1747527635025,4.03678343,2477.3,2476.9,0.776]
[1747527635203,4.03683885,2477.2,2476.9,0.776]
[1747527635638,7.61,2477.1,2476.7,0.478045]
[1747527635797,4.03754859,2476.8,2476.6,0.8037]
[1747527636130,4.03772357,2476.7,2476.4,0.8037]
[1747527636445,7.613,2476.6,2476.4,0.8037]
[1747527636792,7.613,2476.6,2476.1,0.8037]
[1747527637000,4.03836683,2476.3,2475.9,1.281745]
[1747527637214,7.602,2476.3,2475.9,1.281745]
[1747527637901,7.602,2476.3,2476.0,4.0387132]
[1747527638095,7.602,2476.3,2475.9,5.32060911]
[1747527639504,11.64028837,2476.3,2475.9,0.8037]
[1747527639707,4.03845662,2476.2,2475.9,0.8037]
[1747527639929,7.618,2476.1,2475.9,0.8037]
[1747527640110,7.618,2476.1,2476.0,4.03877221]
[1747527640294,7.618,2476.1,2475.9,0.8037]
[1747527640295,7.618,2476.1,2475.9,4.84259301]
[1747527641234,7.618,2476.1,2476.0,4.03877221]
[1747527641899,7.618,2476.1,2475.9,4.84255379]
[1747527642203,7.618,2476.1,2475.9,0.8037]
[1747527642407,7.618,2476.1,2475.6,5.41328899]
[1747527642657,11.65661505,2476.1,2475.6,5.41328899]
[1747527643137,11.65661505,2476.1,2475.6,0.824]
[1747527643637,7.61,2476.0,2475.8,4.039027]
[1747527643939,7.61,2476.0,2475.7,4.5892105]
[1747527644141,7.61,2476.0,2475.7,4.58918655]
[1747527644442,7.61,2476.0,2475.8,4.03909847]
[1747527644744,7.61,2476.0,2475.6,0.824]
[1747527644944,11.64887467,2476.0,2475.6,0.824]
[1747527645117,4.03917669,2475.8,2475.4,0.801]
[1747527645447,4.0391216,2475.8,2475.2,0.801]
[1747527645620,4.03944884,2475.6,2475.2,0.801]
[1747527645817,7.619,2475.5,2475.2,0.801]
[1747527646022,8.1406,2475.5,2474.6,0.478045]
[1747527646207,8.0,2475.2,2474.6,0.478045]
[1747527646418,4.04081964,2474.8,2474.6,0.478045]
[1747527646625,7.631,2474.7,2474.6,0.478045]
[1747527648321,11.67189384,2474.7,2474.6,0.478045]
[1747527648508,7.631,2474.7,2474.4,0.66666667]
[1747527648713,7.607,2474.6,2474.4,0.66666667]
[1747527648933,4.04061832,2474.9,2474.4,0.66666667]
[1747527649136,4.0409,2474.7,2474.4,0.66666667]
[1747527649448,4.04111563,2474.6,2474.4,0.66666667]
[1747527649651,7.653,2474.5,2474.4,0.66666667]
[1747527649818,8.0,2474.8,2474.4,0.66666667]
[1747527650018,15.262,2474.7,2474.4,4.70796699]
[1747527651148,15.262,2474.7,2474.6,4.79905714]
[1747527651149,7.654,2474.7,2474.6,4.79905714]
[1747527652148,0.5216,2475.3,2474.9,4.04056729]
[1747527652447,15.266,2475.2,2474.9,4.04055017]
[1747527652674,15.266,2475.2,2474.8,4.04065021]
[1747527652825,4.04033819,2475.1,2474.6,0.758]
[1747527653027,15.266,2475.2,2474.6,0.758]
[1747527653270,15.266,2475.2,2474.6,4.79898012]
[1747527653429,4.04026567,2475.1,2474.6,4.79898012]
[1747527653615,4.04065907,2474.9,2474.4,0.66666667]
[1747527653811,4.0406453,2474.9,2474.4,4.70802706]
[1747527654033,7.659,2474.8,2474.5,4.04121337]
[1747527654227,7.659,2474.8,2474.5,4.59111253]
[1747527654632,7.659,2474.8,2474.6,4.04105714]
[1747527654828,7.659,2474.8,2474.4,4.70789197]
[1747527655568,7.659,2474.8,2474.5,4.04117619]
[1747527655982,8.0,2475.2,2474.5,4.04117619]
[1747527656140,7.655,2475.0,2474.5,4.04122044]
[1747527656477,4.04042692,2475.0,2474.5,4.04114207]
[1747527656635,7.656,2474.9,2474.5,4.04114207]
[1747527657259,7.656,2474.9,2474.6,4.04089804]
[1747527657641,7.656,2474.9,2474.4,4.70790245]
[1747527657853,0.5216,2475.3,2474.5,0.55]
[1747527658062,19.35008696,2475.2,2474.7,4.04081495]
[1747527658634,4.0403497,2475.1,2474.6,4.79593703]
[1747527659029,19.35016745,2475.2,2474.7,4.04079694]
[1747527659235,4.04026278,2475.1,2474.6,4.79590508]
[1747527659435,4.04080428,2474.8,2474.4,0.66666667]
[1747527659673,18.05,2475.5,2474.4,0.66666667]
[1747527659674,19.34790687,2474.7,2474.4,0.66666667]
[1747527659964,7.652,2474.6,2474.4,0.66666667]
[1747527660744,11.69308079,2474.6,2474.4,0.66666667]
[1747527660951,4.04122044,2474.5,2474.4,0.66666667]
[1747527661361,4.56282044,2474.5,2474.4,0.66666667]
[1747527663162,12.56282044,2474.5,2474.4,0.66666667]
[1747527663337,22.61282044,2474.5,2474.4,0.66666667]
[1747527664142,37.92482044,2474.5,2474.4,0.66666667]
[1747527664493,37.92382044,2474.5,2474.4,0.66666667]
[1747527664644,33.363,2474.5,2474.4,0.66666667]
[1747527664955,37.40422044,2474.5,2474.4,0.66666667]
[1747527665741,37.92582044,2474.5,2474.4,0.66666667]
[1747527665941,37.93782044,2474.5,2474.4,0.66666667]
[1747527666280,22.61282044,2474.5,2474.4,0.66666667]
[1747527666482,7.657,2474.5,2474.4,0.66666667]
[1747527666644,7.673,2474.7,2474.4,1.49796667]
[1747527666980,7.673,2474.7,2474.6,4.04105714]
[1747527667538,7.673,2474.7,2474.5,4.04116336]
[1747527667873,8.5216,2475.2,2474.5,0.95804611]
[1747527668086,15.339,2475.1,2474.6,0.55]
[1747527668243,15.339,2475.1,2474.6,4.5909581]
[1747527668444,15.339,2475.1,2474.7,4.04085963]
[1747527669012,15.339,2475.1,2474.8,4.0407162]
[1747527669163,15.339,2475.1,2474.7,4.04080986]
[1747527669499,15.339,2475.1,2474.6,4.59100498]
[1747527669679,15.339,2475.1,2474.6,5.69981442]
[1747527669883,15.339,2475.1,2474.9,4.04056305]
[1747527670092,10.5716,2475.4,2474.6,5.69985575]
[1747527670296,7.675,2475.1,2474.9,4.04043153]
[1747527670500,7.675,2475.1,2474.9,4.0404504]
[1747527671394,7.675,2475.1,2474.7,0.7711]
[1747527671574,7.675,2475.1,2474.8,4.04070712]
[1747527671978,7.675,2475.1,2474.8,4.04073056]
[1747527672203,7.675,2475.1,2474.9,4.04050157]
[1747527672370,7.675,2475.1,2474.9,4.42533163]
[1747527672566,17.9746,2475.6,2474.9,0.38483006]
[1747527672770,7.657,2475.5,2475.3,4.0398298]
[1747527673796,7.657,2475.5,2475.4,4.42458121]
[1747527673996,7.657,2475.5,2475.4,0.38483006]
[1747527674507,7.657,2475.5,2475.4,4.42458121]
[1747527674703,7.657,2475.5,2475.4,0.38483006]
[1747527675902,10.05,2475.9,2475.5,4.03948588]
[1747527676108,0.5216,2476.2,2475.4,0.38483006]
[1747527676404,11.70221016,2475.8,2475.4,0.38483006]
[1747527676570,11.70221016,2475.8,2475.3,4.42472957]
[1747527676771,11.70221016,2475.8,2475.3,4.42472772]
[1747527676973,11.70221016,2475.8,2475.3,0.38483006]
[1747527677205,4.03928371,2475.7,2475.3,0.38483006]
[1747527677410,4.03970644,2475.5,2475.3,0.38483006]
[1747527677575,4.03975115,2475.4,2475.3,0.38483006]
[1747527677775,11.69568072,2475.5,2475.3,0.38483006]
[1747527678316,7.656,2475.5,2475.3,0.38483006]
[1747527678687,4.56113994,2475.6,2474.9,4.42536751]
[1747527678892,15.327,2475.4,2475.0,4.04027959]
[1747527679201,19.3667796,2475.4,2474.9,4.42535724]
[1747527679518,15.327,2475.4,2474.9,0.38483006]
[1747527679733,4.56110751,2475.6,2475.1,4.0401847]
[1747527679905,10.05,2475.9,2475.1,4.0401847]
[1747527679906,14.61068213,2475.9,2475.3,4.03982958]
[1747527680106,14.61068213,2475.9,2475.2,4.80067756]
[1747527680107,7.674,2475.8,2475.2,0.7606]
[1747527680430,7.674,2475.8,2475.3,0.55]
[1747527680607,7.679,2476.0,2475.7,4.03926162]
[1747527680777,7.679,2476.0,2475.7,0.7954]
[1747527681798,7.679,2476.0,2475.7,4.83457249]
[1747527682114,4.03863704,2476.1,2475.7,0.7954]
[1747527682299,7.677,2476.0,2475.7,0.7954]
[1747527682616,7.677,2476.0,2475.7,4.83464609]
[1747527682813,7.677,2476.0,2475.7,0.7954]
[1747527684214,7.656,2476.2,2475.7,0.7954]
[1747527684419,7.67,2476.0,2475.9,4.03887352]
[1747527684617,17.454,2476.3,2475.8,0.55]
[1747527684820,7.671,2476.2,2476.1,4.0385142]
[1747527685317,7.671,2476.2,2476.1,4.8521091]
[1747527685614,7.67,2476.6,2476.1,1.62009821]
[1747527685819,7.67,2476.6,2476.4,4.03802692]
[1747527686786,7.67,2476.6,2476.5,4.03795679]
[1747527687108,4.03705545,2477.1,2476.6,4.03779319]
[1747527687308,7.676,2477.0,2476.6,4.03779319]
[1747527687745,17.448,2477.2,2476.9,4.03720823]
[1747527687917,7.674,2477.1,2476.8,0.8135]
[1747527688415,7.674,2477.1,2476.8,4.85095583]
[1747527688920,7.674,2477.1,2476.2,0.8135]
[1747527689140,12.23264283,2477.1,2476.4,4.03808485]
[1747527689430,12.23264283,2477.1,2476.5,4.03785819]
[1747527690002,4.03719774,2477.0,2476.4,4.03807722]
[1747527690222,4.03732026,2476.9,2476.3,12.79801408]
[1747527690622,8.1956,2477.1,2476.4,4.03799132]
[1747527690818,4.03715628,2477.0,2476.4,6.59993036]
[1747527691135,4.03740123,2476.9,2476.4,2.56193904]
[1747527691340,12.23259311,2477.1,2476.2,0.8135]
[1747527691341,4.03774556,2476.7,2476.2,0.8135]
[1747527691826,4.038446,2476.2,2476.1,0.478045]
[1747527692002,4.038446,2476.2,2476.0,0.8135]
[1747527692328,4.03831427,2476.3,2475.7,0.8135]
[1747527692620,4.03795679,2476.5,2475.8,4.03901347]
[1747527692820,4.03829946,2476.3,2475.8,0.55]
[1747527693037,4.03854523,2476.2,2475.8,0.55]
[1747527693334,8.2046,2476.6,2475.8,0.55]
[1747527693505,4.03795679,2476.5,2475.9,4.30517773]
[1747527693702,4.03839865,2476.3,2475.9,0.26632881]
[1747527693924,4.03837922,2476.3,2475.8,4.58900857]
[1747527694093,4.03837922,2476.3,2475.8,0.55]
[1747527694419,4.03861133,2476.1,2475.8,0.55]
[1747527694817,4.03836404,2476.3,2475.8,0.55]
[1747527695324,4.03795679,2476.5,2475.8,0.55]
[1747527695621,7.676,2476.4,2476.1,4.03852467]
[1747527695826,7.676,2476.5,2476.3,4.03828292]
[1747527696321,7.676,2476.5,2476.1,4.03856382]
[1747527696322,7.676,2476.5,2476.0,0.7998]
[1747527696529,4.03823076,2476.4,2476.0,0.7998]
[1747527697628,11.7140327,2476.5,2476.0,4.83857069]
[1747527697787,4.03815133,2476.4,2476.0,1.76919895]
[1747527697989,4.03839065,2476.3,2476.0,1.76919895]
[1747527698189,4.03815133,2476.4,2475.8,1.3498]
[1747527698190,4.03853373,2476.2,2475.8,1.3498]
[1747527698408,4.03817987,2476.4,2475.8,1.3498]
[1747527698607,11.71399483,2476.5,2475.8,1.3498]
[1747527698842,4.03812893,2476.4,2475.9,4.03884852]
[1747527699139,4.03812893,2476.4,2475.9,5.91159893]
[1747527700128,7.676,2476.5,2476.0,4.03875729]
[1747527700326,7.676,2476.5,2475.9,1.87275041]
[1747527700503,7.676,2476.5,2475.8,1.3498]
[1747527700504,4.03851837,2476.2,2475.8,1.3498]
[1747527700824,4.03823823,2476.4,2475.9,4.03890705]
[1747527701030,7.676,2476.5,2475.8,5.38884355]
[1747527701228,11.71410192,2476.5,2476.0,4.03874489]
[1747527701524,7.687,2476.5,2476.2,4.03835258]
[1747527702144,7.689,2476.5,2476.2,4.0383647]
[1747527702310,4.03751543,2476.8,2476.3,4.03819895]
[1747527702512,4.03765147,2476.7,2476.2,4.58835994]
[1747527702743,4.03765147,2476.7,2476.2,5.52703387]
[1747527703442,4.03786612,2476.6,2476.2,1.48867393]
[1747527703741,7.687,2476.8,2476.1,0.7598]
[1747527703913,4.03798918,2476.5,2476.1,0.7598]
[1747527704113,4.03784427,2476.6,2476.1,4.79835108]
[1747527704745,0.5216,2476.7,2476.1,4.79835108]
[1747527704953,0.5216,2476.9,2476.4,4.03799692]
[1747527705243,7.68,2476.6,2476.2,0.55]
[1747527705398,7.68,2476.6,2476.2,5.12319618]
[1747527705593,27.493,2477.0,2476.2,0.53483557]
[1747527705793,4.03774567,2476.7,2476.1,4.79839887]
[1747527706001,4.03774567,2476.7,2476.3,4.03827736]
[1747527706395,4.03783715,2476.6,2476.1,4.79839887]
[1747527706953,4.038004,2476.5,2476.1,0.7598]
[1747527707251,4.038004,2476.5,2476.1,4.79840832]
[1747527707438,4.0378211,2476.6,2476.1,6.5956361]
[1747527708156,4.03796274,2476.5,2476.1,6.5956361]
[1747527708359,4.03811985,2476.4,2475.9,2.24566317]
[1747527708953,4.03836326,2476.3,2475.9,2.24566317]
[1747527709451,4.03821917,2476.4,2475.9,6.28458303]
[1747527709758,4.03812608,2476.4,2475.9,6.28458303]
[1747527710249,4.03812608,2476.4,2476.0,0.3848162]
[1747527711456,4.03829981,2476.3,2476.0,0.3848162]
[1747527711654,4.0386091,2476.1,2476.0,0.3848162]
[1747527712021,4.038884,2476.0,2475.7,1.240545]
[1747527712216,4.0386773,2476.1,2475.7,1.79948403]
[1747527712416,11.70254915,2476.2,2475.7,5.83873816]
[1747527712617,8.0,2476.6,2475.9,0.7625]
[1747527712920,4.03812041,2476.4,2475.9,4.80133349]
[1747527713442,4.03812041,2476.4,2475.9,0.7625]
[1747527713753,4.03864396,2476.1,2475.9,0.7625]
[1747527714253,7.664,2476.5,2475.7,1.32143903]
[1747527714462,4.03869572,2476.1,2475.7,0.7625]
[1747527714622,4.03828292,2476.3,2475.7,4.80175265]
[1747527714818,4.03850564,2476.2,2475.7,4.80175265]
[1747527715023,4.03850564,2476.2,2475.8,0.38534601]
[1747527716158,7.666,2476.2,2476.0,0.7625]
[1747527716346,7.666,2476.2,2476.0,5.31984323]
[1747527717228,7.666,2476.2,2476.0,1.28118854]
[1747527717434,7.666,2476.2,2476.0,0.7625]
[1747527719657,4.03752008,2476.8,2476.3,4.03818664]
[1747527719843,7.66,2476.5,2476.4,0.7625]
[1747527720049,4.55890469,2476.9,2476.4,0.7625]
[1747527720050,0.5216,2477.1,2476.4,0.7625]
[1747527720264,15.33,2477.0,2476.6,4.03779374]
[1747527720429,15.33,2477.0,2476.6,4.57282311]
[1747527720624,15.33,2477.0,2476.4,0.7625]
[1747527720860,4.037796,2476.6,2476.3,0.478045]
[1747527721062,4.03811985,2476.4,2476.3,0.478045]
[1747527722264,12.22271985,2476.4,2476.3,0.478045]
[1747527722782,7.663,2476.4,2476.3,0.478045]
[1747527722944,11.72411985,2476.4,2476.3,0.478045]
[1747527723273,7.663,2476.5,2476.3,0.478045]
[1747527723454,7.685,2476.4,2476.3,0.478045]
[1747527723854,7.685,2476.4,2476.2,0.8205]
[1747527724362,4.03798184,2476.5,2476.2,0.8205]
[1747527724564,7.684,2476.4,2476.2,0.8205]
[1747527725068,7.684,2476.4,2476.3,0.38564994]
[1747527725069,11.72211985,2476.4,2476.3,0.38564994]
[1747527725269,7.684,2476.4,2476.3,0.38564994]
[1747527725769,7.684,2476.4,2476.3,4.42393286]
[1747527725971,7.685,2476.5,2476.3,4.42393286]
[1747527726668,7.685,2476.5,2476.3,1.23188721]
[1747527726853,7.685,2476.5,2476.4,0.7692]
[1747527727058,7.685,2476.5,2476.4,1.15484994]
[1747527727258,4.03718386,2477.0,2476.4,1.15484994]
[1747527727259,4.55868356,2477.1,2476.6,4.03772072]
[1747527727433,0.5216,2477.3,2476.9,4.0372528]
[1747527727634,0.5216,2477.5,2477.1,4.03694691]
[1747527727835,0.6667,2477.6,2477.0,0.7692]
[1747527728148,8.3597,2477.6,2477.2,4.0367318]
[1747527728353,8.3597,2477.6,2477.3,0.38564994]
[1747527728548,8.3597,2477.6,2477.3,4.42229453]
[1747527728732,8.3597,2477.6,2477.3,0.38564994]
[1747527728940,12.39595551,2477.6,2477.3,0.38564994]
[1747527729154,0.5216,2477.4,2477.3,0.38564994]
[1747527729360,4.55808986,2477.4,2477.3,0.38564994]
[1747527729755,15.9146,2477.4,2477.3,0.38564994]
[1747527729959,4.03641145,2477.5,2477.0,4.0371417]
[1747527730170,4.03641145,2477.5,2476.8,4.80661985]
[1747527730171,11.77156506,2477.4,2477.1,0.40371417]
[1747527730498,4.03692209,2477.2,2476.8,0.7692]
[1747527730658,4.03702275,2477.1,2476.8,0.7692]
[1747527730855,0.5216,2477.2,2476.5,1.3257]
[1747527731058,0.5216,2477.2,2476.9,0.38464645]
[1747527731059,4.03697872,2477.1,2476.9,0.38464645]
[1747527731684,7.75,2477.1,2476.9,0.38464645]
[1747527731860,7.75,2477.1,2476.9,1.23060884]
[1747527732498,7.75,2477.1,2476.9,0.84596239]
[1747527732693,7.75,2477.1,2476.7,4.03762821]
[1747527733004,7.75,2477.1,2476.8,4.03746405]
[1747527733296,7.75,2477.1,2476.7,0.55]
[1747527733593,7.75,2477.1,2476.7,4.58752607]
[1747527733891,7.75,2477.1,2476.8,0.45875261]
[1747527734194,7.75,2477.1,2476.6,0.55]
[1747527734398,0.5216,2477.0,2476.3,5.29200457]
[1747527734587,4.03747291,2476.8,2476.3,5.29200457]
[1747527734795,4.03737352,2476.9,2476.4,4.03811711]
[1747527734971,4.03737352,2476.9,2476.5,0.52918621]
[1747527735177,4.03737352,2476.9,2476.5,0.91377711]
[1747527735373,4.03733288,2476.9,2476.5,0.91377711]
[1747527735578,4.03733288,2476.9,2476.5,0.3845909]
[1747527735799,0.5216,2477.0,2476.6,4.03775269]
[1747527736000,4.03714203,2477.0,2476.5,4.42246421]
[1747527736215,7.755,2476.9,2476.5,4.42246421]
[1747527736415,7.662,2477.0,2476.8,0.7753]
[1747527736722,7.754,2476.9,2476.8,0.7753]
[1747527737069,7.754,2476.9,2476.6,1.3776]
[1747527737706,4.03755295,2476.8,2476.4,0.8276]
[1747527737923,7.754,2476.9,2476.5,4.0378077]
[1747527738081,7.751,2476.8,2476.5,1.4443903]
[1747527738284,7.751,2476.8,2476.5,5.48226774]
[1747527738683,7.751,2476.8,2476.6,0.38445272]
[1747527738897,4.03763071,2476.7,2476.6,0.38445272]
[1747527739105,11.78851207,2476.8,2476.6,0.38445272]
[1747527739906,7.751,2476.8,2476.6,0.38445272]
[1747527740218,7.751,2476.8,2476.6,0.92879921]
[1747527740417,11.78847988,2476.8,2476.4,0.8276]
[1747527741304,7.751,2476.8,2476.4,4.8656729]
[1747527741910,7.751,2476.8,2476.5,0.38446969]
[1747527742273,4.03779374,2476.6,2476.5,0.38446969]
[1747527742771,4.55939374,2476.6,2476.5,0.38446969]
[1747527743166,0.5216,2476.6,2476.5,0.38446969]
[1747527743409,10.05,2476.9,2476.5,0.38446969]
[1747527743569,21.85733784,2476.9,2476.4,4.03797833]
[1747527743770,21.85733784,2476.9,2476.5,0.80761525]
[1747527743983,4.03764845,2476.7,2476.3,0.55]
[1747527744611,17.82,2476.9,2476.2,0.8276]
[1747527744784,4.03787435,2476.6,2476.2,0.8276]
[1747527745123,21.85731412,2476.9,2476.3,0.3847395]
[1747527745309,4.03763071,2476.7,2476.3,0.3847395]
[1747527745480,15.535,2476.6,2476.3,5.35187331]
[1747527745813,7.767,2476.8,2476.5,4.86544587]
[1747527746108,7.767,2476.8,2476.5,0.8276]
[1747527746295,7.767,2477.0,2476.6,4.03779244]
[1747527746499,7.779,2476.9,2476.5,0.8276]
[1747527746707,7.779,2476.9,2476.6,4.5242632]
[1747527746914,7.779,2476.9,2476.6,0.48656222]
[1747527747211,11.81638622,2476.9,2476.5,0.8276]
[1747527747713,11.81138622,2476.9,2476.5,0.8276]
[1747527747873,4.03748565,2476.8,2476.2,0.55]
[1747527748079,4.03767441,2476.7,2476.3,0.8276]
[1747527748307,4.03767441,2476.7,2476.4,1.3415997]
[1747527748506,11.81136668,2476.9,2476.4,5.37968892]
[1747527749022,4.03747062,2476.8,2476.4,1.3415997]
[1747527750212,7.774,2476.9,2476.5,4.42286566]
[1747527750604,11.8113812,2476.9,2476.5,0.38492031]
[1747527750791,11.8113812,2476.9,2476.5,1.04414203]
[1747527751610,11.8113812,2476.9,2476.6,0.38492031]
[1747527752420,11.81131189,2476.9,2476.6,0.38492031]
[1747527752715,4.03731189,2476.9,2476.6,0.38492031]
[1747527752898,7.755,2476.8,2476.6,0.38492031]
[1747527753085,7.755,2476.8,2476.6,1.02728945]
[1747527753511,7.755,2476.8,2476.6,5.06506945]
[1747527753713,7.755,2476.8,2476.6,1.02728945]
[1747527754925,7.755,2476.8,2476.6,0.64236914]
[1747527756332,7.755,2476.8,2476.7,0.38528271]
[1747527757628,11.7924677,2476.8,2476.7,0.38528271]
[1747527758333,12.3140677,2476.8,2476.7,0.38528271]
[1747527759208,4.03805668,2476.5,2476.3,0.478045]
[1747527759413,7.753,2476.5,2476.3,5.03165647]
[1747527760014,7.753,2476.5,2476.4,4.79481985]
[1747527760938,7.753,2476.5,2476.4,5.18054374]
[1747527761315,7.753,2476.5,2476.4,1.14242389]
[1747527761718,7.753,2476.5,2476.4,0.38572389]
[1747527763944,11.79095679,2476.5,2476.4,0.38572389]
[1747527764146,12.31255679,2476.5,2476.4,0.38572389]
[1747527766339,12.31255679,2476.5,2476.0,4.51671225]
[1747527766549,12.31255679,2476.5,2476.0,5.43601671]
[1747527767014,12.31255679,2476.5,2476.0,1.39734946]
[1747527767015,4.03822844,2476.4,2476.0,1.39734946]
[1747527767345,4.03830057,2476.3,2476.0,1.39734946]
[1747527768107,4.03819963,2476.4,2476.1,0.38578585]
[1747527769545,4.03829058,2476.3,2476.1,0.38578585]
[1747527770052,8.2746,2476.5,2475.7,1.234745]
[1747527770213,12.31256559,2476.5,2476.0,4.03865777]
[1747527770408,7.768,2476.7,2476.3,4.03824286]
[1747527770735,7.743,2476.7,2476.4,0.8147]
[1747527771542,7.743,2476.7,2476.4,4.85280517]
[1747527771744,7.743,2476.7,2476.4,1.70382327]
[1747527771949,11.78066117,2476.7,2476.4,1.70382327]
[1747527772344,4.038196,2476.4,2476.1,0.8147]
[1747527772649,4.55940912,2476.6,2476.2,0.38562509]
[1747527773041,0.5216,2476.8,2476.4,4.03798149]
[1747527773213,15.503,2476.7,2476.4,4.03798621]
[1747527773422,15.503,2476.7,2476.3,4.03819924]
[1747527773650,19.54064908,2476.7,2476.4,0.84622347]
[1747527774518,7.73,2476.6,2476.4,4.03810817]
[1747527774714,22.08740885,2476.9,2476.4,4.03810817]
[1747527774948,15.459,2476.8,2476.5,0.8147]
[1747527775154,4.03764395,2476.7,2476.3,0.7886]
[1747527775544,4.03797631,2476.5,2476.4,0.38562294]
[1747527776519,0.5216,2476.6,2476.4,0.38562294]
[1747527776756,4.03773726,2476.7,2476.4,0.38562294]
[1747527777119,20.01817705,2476.8,2476.4,0.38562294]
[1747527777321,4.0376567,2476.7,2476.4,0.38562294]
[1747527777531,4.0375429,2476.8,2476.4,0.38562294]
[1747527777721,7.59102737,2476.6,2476.4,0.84623464]
[1747527778056,7.59102737,2476.6,2476.2,4.03835455]
[1747527778419,4.03814126,2476.4,2475.9,5.30547752]
[1747527778652,7.59102737,2476.6,2475.9,1.266645]
[1747527778853,11.62893694,2476.6,2476.1,4.038592]
[1747527779435,7.59102737,2476.6,2475.9,5.30547855]
[1747527779645,11.62890045,2476.6,2476.1,4.03859051]
[1747527779960,7.776,2476.5,2476.1,4.03859051]
[1747527781226,11.81402755,2476.5,2475.9,1.266645]
[1747527781538,4.03827027,2476.4,2475.9,0.7886]
[1747527781759,10.05,2476.9,2476.0,0.55]
[1747527781960,10.05,2476.9,2476.2,0.55]
[1747527781961,0.5216,2476.9,2476.2,0.55]
[1747527782159,0.5216,2477.3,2476.7,4.85191884]
[1747527782489,2.70104361,2477.6,2477.2,4.03667069]
[1747527782796,2.70104361,2477.6,2477.5,4.85072694]
[1747527782948,2.70104361,2477.6,2477.5,5.40072694]
[1747527783147,2.70104361,2477.6,2477.5,5.78579723]
[1747527783382,2.70104361,2477.6,2477.5,1.74947029]
[1747527783762,0.6667,2477.6,2477.5,5.78579723]
[1747527783953,0.6667,2477.6,2477.5,1.74947029]
[1747527784761,0.6667,2477.6,2477.5,5.78579723]
[1747527785092,0.6667,2477.6,2477.5,1.19947029]
[1747527786293,0.6667,2477.6,2477.5,0.38507029]
[1747527787197,0.6667,2477.6,2477.2,0.806]
[1747527787691,4.03639034,2477.5,2477.2,0.806]
[1747527787924,4.03639034,2477.5,2477.0,0.55]
[1747527788188,4.03651975,2477.4,2477.0,1.80679856]
[1747527788487,7.787,2477.4,2477.0,1.80679856]
[1747527788689,11.82349848,2477.4,2477.0,1.80679856]
[1747527789071,4.03666363,2477.3,2476.9,0.806]
[1747527789274,4.03667115,2477.3,2476.9,0.806]
[1747527789480,4.03695891,2477.2,2476.7,1.29119188]
[1747527789681,4.03695891,2477.2,2476.7,5.32876503]
[1747527790000,4.03705851,2477.1,2476.7,0.48519188]
[1747527790768,7.728,2477.1,2476.6,0.47962472]
[1747527790968,4.03748054,2476.8,2476.6,0.47962472]
[1747527791271,12.36323071,2476.7,2476.6,0.47962472]
[1747527792102,20.36323071,2476.7,2476.6,0.47962472]
[1747527792302,4.03832818,2476.3,2475.9,0.7817]
[1747527792605,4.03820324,2476.4,2475.9,0.7817]
[1747527792792,4.03820324,2476.4,2475.9,4.82063151]
[1747527792998,4.03820324,2476.4,2476.0,0.48206315]
[1747527793507,7.814,2476.6,2476.2,4.038446]
[1747527793695,7.814,2476.6,2476.4,4.03808027]
[1747527794009,7.814,2476.6,2476.3,4.81991984]
[1747527794203,7.814,2476.6,2476.4,4.03809175]
[1747527794408,7.812,2476.6,2476.4,4.92393593]
[1747527795308,7.812,2476.6,2476.4,0.88582026]
[1747527795511,7.812,2476.6,2476.1,5.40490155]
[1747527795870,0.5216,2477.0,2476.1,1.3663]
[1747527796068,15.544,2476.9,2476.5,0.55]
[1747527797074,19.58141165,2476.9,2476.5,0.55]
[1747527797404,15.544,2476.9,2476.4,0.8163]
[1747527797592,4.03771911,2476.7,2476.4,0.8163]
[1747527797793,4.03771911,2476.7,2476.2,4.58841907]
[1747527797794,16.0656,2476.9,2476.2,0.8163]
[1747527797980,4.0379226,2476.6,2476.2,0.8163]
[1747527798318,4.0379226,2476.6,2476.2,1.69793]
[1747527798870,4.03805948,2476.5,2476.0,4.85504319]
[1747527799191,7.818,2476.4,2476.3,0.3842262]
[1747527799577,7.82,2476.5,2476.3,0.3842262]
[1747527800714,7.82,2476.5,2476.2,4.03837527]
[1747527800914,7.82,2476.5,2476.2,4.92771489]
[1747527801113,7.82,2476.5,2476.3,4.03827222]
[1747527801291,7.82,2476.5,2476.2,4.92770138]
[1747527801614,7.82,2476.5,2476.2,0.88933962]
[1747527802409,4.0375225,2476.8,2476.3,4.03824468]
[1747527802612,7.817,2477.0,2476.4,1.7296838]
[1747527802790,7.817,2477.0,2476.6,4.03765478]
[1747527802987,11.85415255,2477.0,2476.5,4.58786322]